fUST/lending_fUST_20250819
["ID","MTS","AMOUNT","RATE_DAILY","PERIOD"]
[380207094,1755609050141,-250.84056042,0.00019726,2]
[380207095,1755609050154,-2372.04,0.00019726,2]
[380207096,1755609050166,-480.0,0.00019726,2]
[380207097,1755609050179,-480.0,0.00019726,2]
[380207098,1755609050193,-561.93,0.00019726,2]
[380207099,1755609050205,-423.66804916,0.00019726,2]
[380207100,1755609050216,-480.0,0.00019726,2]
[380207101,1755609050227,-286.72278778,0.00019726,2]
[380207102,1755609050239,-492.34,0.00019726,2]
[380207103,1755609050252,-480.0,0.00019726,2]
[380207104,1755609050265,-474.37369415,0.00019726,2]
[380207105,1755609050289,-5.62630585,0.00019726,2]
[380207106,1755609050303,-480.0,0.00019726,2]
[380207107,1755609050316,-480.0,0.00019726,2]
[380207108,1755609050328,-480.0,0.00019726,2]
[380207109,1755609050339,-480.0,0.00019726,2]
[380207110,1755609050349,-339.15481806,0.00019726,2]
[380207111,1755609050427,-140.84518194,0.00019726,2]
[380207112,1755609050438,-976.11,0.00019726,2]
[380207113,1755609050449,-480.0,0.00019726,2]
[380207114,1755609050460,-480.0,0.00019726,2]
[380207115,1755609050473,-480.0,0.00019726,2]
[380207116,1755609050485,-480.0,0.00019726,2]
[380207117,1755609050497,-480.0,0.00019726,2]
[380207118,1755609050508,-445.3689607,0.00019726,2]
[380207119,1755609050519,-545.9,0.00019726,2]
[380207120,1755609050531,-1268.85,0.00019726,2]
[380207121,1755609050543,-480.0,0.00019726,2]
[380207122,1755609050555,-480.0,0.00019726,2]
[380207123,1755609050566,-480.0,0.00019726,2]
[380207124,1755609050578,-480.0,0.00019726,2]
[380207125,1755609050589,-547.77,0.00019726,2]
[380207126,1755609050600,-480.0,0.00019726,2]
[380207127,1755609050612,-480.0,0.00019726,2]
[380207128,1755609050623,-480.0,0.00019726,2]
[380207129,1755609050634,-530.02,0.00019726,2]
[380207130,1755609050646,-480.0,0.00019726,2]
[380207131,1755609050658,-806.42,0.00019726,2]
[380207132,1755609050669,-6294.71585744,0.00019726,2]
[380207133,1755609050684,-139.83414256,0.00019726,2]
[380207134,1755609050695,-480.0,0.00019726,2]
[380207135,1755609050706,-912.63,0.00019726,2]
[380207136,1755609050717,-480.0,0.00019726,2]
[380207137,1755609050729,-480.0,0.00019726,2]
[380207138,1755609050740,-480.0,0.00019726,2]
[380207139,1755609050751,-480.0,0.00019726,2]
[380207140,1755609050763,-1774.61,0.00019726,2]
[380207141,1755609050774,-480.0,0.00019726,2]
[380207142,1755609050786,-689.55,0.00019726,2]
[380207143,1755609050797,-547.95,0.00019726,2]
[380207144,1755609050809,-1159.23,0.00019726,2]
[380207145,1755609050821,-2424.84,0.00019726,2]
[380207146,1755609050832,-480.0,0.00019726,2]
[380207147,1755609050843,-442.65618935,0.00019726,2]
[380207148,1755609050855,-1044.09,0.00019726,2]
[380207149,1755609050867,-480.0,0.00019726,2]
[380207150,1755609050880,-1196.04,0.00019726,2]
[380207151,1755609050891,-480.0,0.00019726,2]
[380207152,1755609050903,-480.0,0.00019726,2]
[380207153,1755609050915,-480.0,0.00019726,2]
[380207154,1755609050927,-480.0,0.00019726,2]
[380207155,1755609050939,-480.0,0.00019726,2]
[380207156,1755609050950,-480.0,0.00019726,2]
[380207157,1755609050963,-480.0,0.00019726,2]
[380207158,1755609050975,-480.0,0.00019726,2]
[380207159,1755609050987,-974.95,0.00019726,2]
[380207160,1755609050999,-480.0,0.00019726,2]
[380207161,1755609051010,-480.0,0.00019726,2]
[380207162,1755609051023,-4989.22,0.00019726,2]
[380207163,1755609051037,-969.05,0.00019726,2]
[380207164,1755609051049,-480.0,0.00019726,2]
[380207165,1755609051058,-480.0,0.00019726,2]
[380207166,1755609051068,-480.0,0.00019726,2]
[380207167,1755609051077,-480.0,0.00019726,2]
[380207168,1755609051086,-818.21,0.00019726,2]
[380207169,1755609051096,-480.0,0.00019726,2]
[380207170,1755609051105,-480.0,0.00019726,2]
[380207171,1755609051116,-2855.45,0.00019726,2]
[380207172,1755609051125,-480.0,0.00019726,2]
[380207173,1755609051134,-480.0,0.00019726,2]
[380207174,1755609051144,-480.0,0.00019726,2]
[380207175,1755609051153,-2388.13,0.00019726,2]
[380207176,1755609051162,-2845.0,0.00019726,2]
[380207177,1755609051172,-480.0,0.00019726,2]
[380207178,1755609051181,-480.0,0.00019726,2]
[380207179,1755609051191,-1229.36,0.00019726,2]
[380207180,1755609051200,-353.79058123,0.00019726,2]
[380207181,1755609051212,-126.20941877,0.00019726,2]
[380207182,1755609051221,-333.79058123,0.00019726,2]
[380207183,1755609051235,-146.20941877,0.00019726,2]
[380207184,1755609051245,-655.76,0.00019726,2]
[380207185,1755609051255,-168.81808318,0.00019726,2]
[380207186,1755609051264,-298.35068802,0.00019726,2]
[380207187,1755609051276,-317.33931198,0.00019726,2]
[380207188,1755609051286,-246.9282229,0.00019726,2]
[380207189,1755609051297,-233.0717771,0.00019726,2]
[380207190,1755609051307,-3662.94,0.00019726,2]
[380207191,1755609051316,-480.0,0.00019726,2]
[380207192,1755609051326,-480.0,0.00019726,2]
[380207193,1755609051335,-1740.4,0.00019726,2]
[380207194,1755609051345,-480.0,0.00019726,2]
[380207195,1755609051354,-529.16,0.00019726,2]
[380207196,1755609051363,-480.0,0.00019726,2]
[380207197,1755609051373,-35.30639706,0.00019726,2]
[380207198,1755609051385,-907.60360294,0.00019726,2]
[380207199,1755609051394,-480.0,0.00019726,2]
[380207200,1755609051404,-480.0,0.00019726,2]
[380207201,1755609051680,-480.0,0.00019726,2]
[380207202,1755609051702,-1175.47,0.00019726,2]
[380207203,1755609051719,-1271.65,0.00019726,2]
[380207204,1755609051728,-368.79835111,0.00019726,2]
[380207205,1755609051738,-480.0,0.00019726,2]
[380207206,1755609051747,-480.0,0.00019726,2]
[380207207,1755609051757,-966.31,0.00019726,2]
[380207208,1755609051766,-480.0,0.00019726,2]
[380207209,1755609051776,-480.0,0.00019726,2]
[380207210,1755609051786,-588.18044648,0.00019726,2]
[380207211,1755609051795,-787.81,0.00019726,2]
[380207212,1755609051804,-480.0,0.00019726,2]
[380207213,1755609051813,-480.0,0.00019726,2]
[380207214,1755609051822,-744.61,0.00019726,2]
[380207215,1755609051831,-498.06618562,0.00019726,2]
[380207216,1755609051841,-2378.56,0.00019726,2]
[380207217,1755609051850,-898.74,0.00019726,2]
[380207218,1755609051860,-480.0,0.00019726,2]
[380207219,1755609051869,-480.0,0.00019726,2]
[380207220,1755609051881,-480.0,0.00019726,2]
[380207221,1755609051891,-314.28252717,0.00019726,2]
[380207222,1755609051900,-480.0,0.00019726,2]
[380207223,1755609051914,-767.0,0.00019726,2]
[380207224,1755609051924,-1736.37,0.00019726,2]
[380207225,1755609051934,-430.16362591,0.00019726,2]
[380207226,1755609051943,-480.0,0.00019726,2]
[380207227,1755609051952,-480.0,0.00019726,2]
[380207228,1755609051964,-480.0,0.00019726,2]
[380207229,1755609051973,-960.47,0.00019726,2]
[380207230,1755609051983,-480.0,0.00019726,2]
[380207231,1755609051992,-480.0,0.00019726,2]
[380207232,1755609052001,-700.72,0.00019726,2]
[380207233,1755609052010,-883.4,0.00019726,2]
[380207234,1755609052020,-480.0,0.00019726,2]
[380207235,1755609052029,-480.0,0.00019726,2]
[380207236,1755609052038,-551.07,0.00019726,2]
[380207237,1755609052048,-480.0,0.00019726,2]
[380207238,1755609052057,-470.51392967,0.00019726,2]
[380207239,1755609052072,-426.84607033,0.00019726,2]
[380207240,1755609052082,-480.0,0.00019726,2]
[380207241,1755609052091,-480.0,0.00019726,2]
[380207242,1755609052100,-199.84332793,0.00019726,2]
[380207243,1755609052111,-734.55667207,0.00019726,2]
[380207244,1755609052120,-480.0,0.00019726,2]
[380207245,1755609052129,-480.0,0.00019726,2]
[380207246,1755609052139,-574.39832561,0.00019726,2]
[380207247,1755609052148,-480.0,0.00019726,2]
[380207248,1755609052166,-480.0,0.00019726,2]
[380207249,1755609052180,-757.16,0.00019726,2]
[380207250,1755609052198,-480.0,0.00019726,2]
[380207251,1755609052213,-8480.16136096,0.00019726,2]
[380207252,1755609080022,1112.77660116,0.00018486,2]
[380207255,1755609199166,288.0,0.00028767,120]
[380207256,1755609295578,234.1,0.00028767,120]
[380207257,1755609636200,308.52621004,0.00018497,2]
[380207258,1755609639235,1000.0,0.000181,2]
[380207259,1755609648290,1598.72269382,0.0001856,2]
[380207260,1755609799932,538.638562,0.00013699,2]
[380207261,1755609989300,262.38,0.00027945,120]
[380207262,1755610042086,-500.0,0.00018586,2]
[380207263,1755610042107,-154.11430266,0.000189,2]
[380207264,1755610042127,-1200.0,0.00019076,2]
[380207265,1755610042148,-1200.0,0.00019077,2]
[380207266,1755610042168,-300.0,0.00019077,2]
[380207267,1755610042189,-622.9519169,0.00019078,2]
[380207268,1755610042217,-4580.34659548,0.00019078,2]
[380207269,1755610042241,-14845.97052345,0.00019078,2]
[380207278,1755610232356,-382.4911022,0.00018586,2]
[380207279,1755610232368,-117.5088978,0.00018586,2]
[380207280,1755610232378,-150.0,0.000189,2]
[380207282,1755610232387,-1181.81076865,0.000189,2]
[380207284,1755610232397,-2940.18424112,0.00019068,2]
[380207286,1755610232406,-1200.0,0.00019077,2]
[380207288,1755610232416,-3765.10465954,0.00019078,2]
[380207289,1755610232436,-10405.17325242,0.00019078,2]
[380207290,1755610232446,-2431.5627823,0.00019078,2]
[380207292,1755610232482,-1838.70508551,0.00019078,2]
[380207322,1755610238255,-245.2775924,0.00019078,2]
[380207324,1755610238265,-622.95191688,0.00019147,2]
[380207326,1755610238275,-207.08308356,0.00019166,2]
[380207328,1755610238284,-231.66,0.00019168,3]
[380207330,1755610238294,-327.73,0.00019168,3]
[380207332,1755610238304,-163.86,0.00019168,3]
[380207334,1755610238314,-491.62,0.00019168,3]
[380207336,1755610238323,-694.99,0.00019168,3]
[380207338,1755610238334,-500.0,0.00019173,2]
[380207340,1755610238344,-500.0,0.00019173,2]
[380207342,1755610238354,-500.0,0.00019173,2]
[380207344,1755610238365,-500.0,0.00019173,2]
[380207346,1755610238375,-500.0,0.00019173,2]
[380207348,1755610238386,-500.0,0.00019173,2]
[380207350,1755610238398,-510.97540017,0.00019173,2]
[380207352,1755610238409,-500.22444816,0.00019173,2]
[380207354,1755610238420,-1109.72677025,0.00019173,2]
[380207356,1755610238434,-13598.48625548,0.00019173,2]
[380207358,1755610238452,-10493.74594294,0.00019173,2]
[380207361,1755610238465,-14231.06973192,0.00019173,2]
[380207364,1755610238483,-10566.97129941,0.00019173,2]
[380207366,1755610238495,-150.0,0.00019177,2]
[380207368,1755610238505,-500.0,0.00019177,2]
[380207370,1755610238515,-171.36310839,0.00019177,2]
[380207372,1755610238526,-320.297452,0.00019177,2]
[380207374,1755610238536,-222.80119792,0.00019177,2]
[380207376,1755610238546,-480.0,0.00019178,2]
[380207378,1755610238556,-480.0,0.00019178,2]
[380207380,1755610238566,-480.0,0.00019178,2]
[380207382,1755610238576,-480.0,0.00019178,2]
[380207384,1755610238585,-421.90157927,0.00019178,2]
[380207386,1755610238597,-480.0,0.00019178,2]
[380207388,1755610238607,-480.0,0.00019178,2]
[380207390,1755610238618,-480.0,0.00019178,2]
[380207392,1755610238628,-480.0,0.00019178,2]
[380207394,1755610238638,-480.0,0.00019178,2]
[380207396,1755610238648,-480.0,0.00019178,2]
[380207398,1755610238660,-480.0,0.00019178,2]
[380207400,1755610238670,-489.67515468,0.00019178,2]
[380207402,1755610238681,-480.0,0.00019178,2]
[380207404,1755610238691,-480.0,0.00019178,2]
[380207406,1755610238709,-480.0,0.00019178,2]
[380207407,1755610238718,-480.0,0.00019178,2]
[380207409,1755610238727,-480.0,0.00019178,2]
[380207411,1755610238737,-480.0,0.00019178,2]
[380207413,1755610238746,-480.0,0.00019178,2]
[380207415,1755610238756,-480.0,0.00019178,2]
[380207417,1755610238766,-480.0,0.00019178,2]
[380207419,1755610238776,-480.0,0.00019178,2]
[380207421,1755610238785,-480.0,0.00019178,2]
[380207423,1755610238795,-480.0,0.00019178,2]
[380207425,1755610238805,-480.0,0.00019178,2]
[380207427,1755610238814,-480.0,0.00019178,2]
[380207429,1755610238824,-480.0,0.00019178,2]
[380207430,1755610238833,-170.68906213,0.00019178,2]
[380207431,1755610238843,-480.0,0.00019178,2]
[380207432,1755610238853,-480.0,0.00019178,2]
[380207434,1755610238863,-480.0,0.00019178,2]
[380207436,1755610238872,-461.25740987,0.00019178,2]
[380207438,1755610238881,-480.0,0.00019178,2]
[380207439,1755610238891,-480.0,0.00019178,2]
[380207441,1755610238900,-355.6162576,0.00019178,2]
[380207442,1755610238909,-480.0,0.00019178,2]
[380207443,1755610238918,-480.0,0.00019178,2]
[380207444,1755610238928,-440.94623783,0.00019178,2]
[380207445,1755610238937,-480.0,0.00019178,2]
[380207446,1755610238951,-480.0,0.00019178,2]
[380207447,1755610238961,-480.0,0.00019178,2]
[380207448,1755610238970,-480.0,0.00019178,2]
[380207450,1755610238979,-480.0,0.00019178,2]
[380207451,1755610238988,-480.0,0.00019178,2]
[380207452,1755610238997,-421.66262795,0.00019178,2]
[380207453,1755610239007,-440.61820503,0.00019178,2]
[380207454,1755610239016,-480.0,0.00019178,2]
[380207455,1755610239025,-492.53641805,0.00019178,2]
[380207456,1755610239035,-480.0,0.00019178,2]
[380207457,1755610239044,-461.46509219,0.00019178,2]
[380207458,1755610239053,-480.0,0.00019178,2]
[380207459,1755610239063,-480.0,0.00019178,2]
[380207460,1755610239072,-480.0,0.00019178,2]
[380207461,1755610239081,-480.0,0.00019178,2]
[380207462,1755610239091,-480.0,0.00019178,2]
[380207463,1755610239100,-480.0,0.00019178,2]
[380207464,1755610239109,-480.0,0.00019178,2]
[380207465,1755610239118,-480.0,0.00019178,2]
[380207466,1755610239127,-461.64217663,0.00019178,2]
[380207467,1755610239137,-480.0,0.00019178,2]
[380207468,1755610239146,-480.0,0.00019178,2]
[380207469,1755610239156,-480.0,0.00019178,2]
[380207470,1755610239165,-480.0,0.00019178,2]
[380207471,1755610239175,-480.0,0.00019178,2]
[380207472,1755610239184,-480.0,0.00019178,2]
[380207473,1755610239196,-480.0,0.00019178,2]
[380207474,1755610239206,-480.0,0.00019178,2]
[380207475,1755610239215,-500.0,0.00019178,2]
[380207476,1755610239224,-500.0,0.00019178,2]
[380207477,1755610239234,-500.0,0.00019178,2]
[380207478,1755610239244,-500.0,0.00019178,2]
[380207479,1755610239257,-500.0,0.00019178,2]
[380207480,1755610239267,-500.0,0.00019178,2]
[380207481,1755610239276,-500.0,0.00019178,2]
[380207482,1755610239287,-500.0,0.00019178,2]
[380207483,1755610239296,-500.0,0.00019178,2]
[380207484,1755610239307,-500.0,0.00019178,2]
[380207485,1755610239316,-480.0,0.00019178,2]
[380207486,1755610239326,-480.0,0.00019178,2]
[380207487,1755610239336,-480.0,0.00019178,2]
[380207488,1755610239345,-480.0,0.00019178,2]
[380207489,1755610239354,-480.0,0.00019178,2]
[380207490,1755610239364,-460.0,0.00019178,2]
[380207491,1755610239373,-480.0,0.00019178,2]
[380207492,1755610239383,-480.0,0.00019178,2]
[380207493,1755610239393,-480.0,0.00019178,2]
[380207494,1755610239404,-480.0,0.00019178,2]
[380207495,1755610239415,-538.65908821,0.00019178,2]
[380207496,1755610239425,-480.0,0.00019178,2]
[380207497,1755610239436,-503.9,0.00019178,2]
[380207498,1755610239451,-480.0,0.00019178,2]
[380207499,1755610239461,-460.0,0.00019178,2]
[380207500,1755610239471,-460.0,0.00019178,2]
[380207501,1755610239480,-480.0,0.00019178,2]
[380207502,1755610239489,-480.0,0.00019178,2]
[380207503,1755610239499,-480.0,0.00019178,2]
[380207504,1755610239510,-480.0,0.00019178,2]
[380207505,1755610239519,-480.0,0.00019178,2]
[380207506,1755610239528,-480.0,0.00019178,2]
[380207507,1755610239537,-480.0,0.00019178,2]
[380207508,1755610239547,-514.34,0.00019178,2]
[380207509,1755610239556,-480.0,0.00019178,2]
[380207510,1755610239565,-480.0,0.00019178,2]
[380207511,1755610239575,-480.0,0.00019178,2]
[380207512,1755610239584,-338.04963681,0.00019178,2]
[380207513,1755610239594,-480.0,0.00019178,2]
[380207514,1755610239603,-480.0,0.00019178,2]
[380207515,1755610239613,-480.0,0.00019178,2]
[380207516,1755610239622,-480.0,0.00019178,2]
[380207517,1755610239632,-460.0,0.00019178,2]
[380207518,1755610239641,-480.0,0.00019178,2]
[380207519,1755610239651,-480.0,0.00019178,2]
[380207520,1755610239660,-480.0,0.00019178,2]
[380207521,1755610239670,-480.0,0.00019178,2]
[380207522,1755610239679,-480.0,0.00019178,2]
[380207523,1755610239689,-480.0,0.00019178,2]
[380207524,1755610239703,-344.56625445,0.00019178,2]
[380207525,1755610239713,-480.0,0.00019178,2]
[380207526,1755610239722,-480.0,0.00019178,2]
[380207527,1755610239732,-480.0,0.00019178,2]
[380207528,1755610239741,-480.0,0.00019178,2]
[380207529,1755610239751,-496.73,0.00019178,2]
[380207530,1755610239760,-480.0,0.00019178,2]
[380207531,1755610239770,-1386.49,0.00019178,2]
[380207532,1755610239779,-480.0,0.00019178,2]
[380207533,1755610239788,-480.0,0.00019178,2]
[380207534,1755610239798,-480.0,0.00019178,2]
[380207535,1755610239808,-480.0,0.00019178,2]
[380207536,1755610239817,-480.0,0.00019178,2]
[380207537,1755610239827,-831.67,0.00019178,2]
[380207538,1755610239836,-480.0,0.00019178,2]
[380207539,1755610239845,-538.50851829,0.00019178,2]
[380207540,1755610239855,-502.36,0.00019178,2]
[380207541,1755610239865,-510.78,0.00019178,2]
[380207542,1755610239874,-480.0,0.00019178,2]
[380207543,1755610239885,-500.0,0.00019178,2]
[380207544,1755610239894,-500.0,0.00019178,2]
[380207545,1755610239904,-480.0,0.00019178,2]
[380207546,1755610239913,-460.0,0.00019178,2]
[380207547,1755610239923,-554.41439668,0.00019178,2]
[380207548,1755610239933,-480.0,0.00019178,2]
[380207549,1755610239943,-480.0,0.00019178,2]
[380207552,1755610239957,-480.0,0.00019178,2]
[380207553,1755610239966,-480.0,0.00019178,2]
[380207554,1755610239975,-480.0,0.00019178,2]
[380207555,1755610239985,-460.0,0.00019178,2]
[380207556,1755610239994,-480.0,0.00019178,2]
[380207558,1755610240003,-480.0,0.00019178,2]
[380207560,1755610240013,-215.45275969,0.00019178,2]
[380207561,1755610240022,-480.0,0.00019178,2]
[380207562,1755610240031,-480.0,0.00019178,2]
[380207564,1755610240040,-480.0,0.00019178,2]
[380207565,1755610240050,-480.0,0.00019178,2]
[380207566,1755610240060,-480.0,0.00019178,2]
[380207567,1755610240069,-480.0,0.00019178,2]
[380207568,1755610240079,-480.0,0.00019178,2]
[380207569,1755610240089,-480.0,0.00019178,2]
[380207570,1755610240098,-480.0,0.00019178,2]
[380207571,1755610240108,-480.0,0.00019178,2]
[380207572,1755610240117,-480.0,0.00019178,2]
[380207574,1755610240127,-519.33,0.00019178,2]
[380207575,1755610240136,-480.0,0.00019178,2]
[380207576,1755610240146,-315.46948256,0.00019178,2]
[380207577,1755610240155,-460.0,0.00019178,2]
[380207578,1755610240165,-480.0,0.00019178,2]
[380207579,1755610240174,-401.10288567,0.00019178,2]
[380207580,1755610240184,-480.0,0.00019178,2]
[380207581,1755610240194,-452.39421209,0.00019178,2]
[380207582,1755610240205,-480.0,0.00019178,2]
[380207583,1755610240215,-480.0,0.00019178,2]
[380207584,1755610240224,-480.0,0.00019178,2]
[380207585,1755610240234,-482.89,0.00019178,2]
[380207586,1755610240243,-480.0,0.00019178,2]
[380207587,1755610240253,-480.0,0.00019178,2]
[380207588,1755610240266,-480.0,0.00019178,2]
[380207589,1755610240275,-480.0,0.00019178,2]
[380207590,1755610240284,-480.0,0.00019178,2]
[380207591,1755610240294,-501.18,0.00019178,2]
[380207592,1755610240304,-480.0,0.00019178,2]
[380207593,1755610240314,-7285.62,0.00019178,2]
[380207594,1755610240323,-480.0,0.00019178,2]
[380207595,1755610240333,-480.0,0.00019178,2]
[380207596,1755610240343,-480.0,0.00019178,2]
[380207597,1755610240353,-480.0,0.00019178,2]
[380207598,1755610240362,-480.0,0.00019178,2]
[380207599,1755610240372,-480.0,0.00019178,2]
[380207600,1755610240381,-480.0,0.00019178,2]
[380207601,1755610240390,-480.0,0.00019178,2]
[380207602,1755610240400,-480.0,0.00019178,2]
[380207603,1755610240409,-480.0,0.00019178,2]
[380207604,1755610240419,-480.0,0.00019178,2]
[380207605,1755610240428,-480.0,0.00019178,2]
[380207606,1755610240438,-460.0,0.00019178,2]
[380207607,1755610240451,-480.0,0.00019178,2]
[380207608,1755610240461,-440.0,0.00019178,2]
[380207610,1755610240470,-349.54133875,0.00019178,2]
[380207611,1755610240480,-480.0,0.00019178,2]
[380207612,1755610240489,-480.0,0.00019178,2]
[380207613,1755610240498,-480.0,0.00019178,2]
[380207614,1755610240507,-480.0,0.00019178,2]
[380207615,1755610240517,-480.0,0.00019178,2]
[380207616,1755610240526,-279.3138424,0.00019178,2]
[380207617,1755610240535,-480.0,0.00019178,2]
[380207618,1755610240545,-400.71857052,0.00019178,2]
[380207619,1755610240554,-480.0,0.00019178,2]
[380207620,1755610240563,-480.0,0.00019178,2]
[380207621,1755610240572,-480.0,0.00019178,2]
[380207622,1755610240582,-480.0,0.00019178,2]
[380207623,1755610240592,-480.0,0.00019178,2]
[380207624,1755610240602,-480.0,0.00019178,2]
[380207625,1755610240612,-480.0,0.00019178,2]
[380207626,1755610240624,-480.0,0.00019178,2]
[380207627,1755610240634,-480.0,0.00019178,2]
[380207628,1755610240644,-480.0,0.00019178,2]
[380207629,1755610240654,-480.0,0.00019178,2]
[380207630,1755610240664,-480.0,0.00019178,2]
[380207631,1755610240674,-480.0,0.00019178,2]
[380207632,1755610240683,-1271.97,0.00019178,2]
[380207633,1755610240692,-480.0,0.00019178,2]
[380207634,1755610240709,-480.0,0.00019178,2]
[380207635,1755610240718,-480.0,0.00019178,2]
[380207636,1755610240727,-1207.29,0.00019178,2]
[380207637,1755610240736,-480.0,0.00019178,2]
[380207638,1755610240746,-480.0,0.00019178,2]
[380207639,1755610240755,-480.0,0.00019178,2]
[380207640,1755610240764,-480.0,0.00019178,2]
[380207641,1755610240773,-1928.88,0.00019178,2]
[380207642,1755610240782,-480.0,0.00019178,2]
[380207643,1755610240791,-480.0,0.00019178,2]
[380207644,1755610240800,-480.0,0.00019178,2]
[380207645,1755610240810,-480.0,0.00019178,2]
[380207646,1755610240819,-480.0,0.00019178,2]
[380207647,1755610240828,-1018.9,0.00019178,2]
[380207648,1755610240837,-480.0,0.00019178,2]
[380207649,1755610240846,-480.0,0.00019178,2]
[380207650,1755610240855,-619.22,0.00019178,2]
[380207651,1755610240865,-480.0,0.00019178,2]
[380207652,1755610240874,-480.0,0.00019178,2]
[380207653,1755610240883,-480.0,0.00019178,2]
[380207654,1755610240892,-480.0,0.00019178,2]
[380207655,1755610240901,-157.92123922,0.00019178,2]
[380207656,1755610240911,-480.0,0.00019178,2]
[380207657,1755610240920,-480.0,0.00019178,2]
[380207658,1755610240929,-382.17539499,0.00019178,2]
[380207659,1755610240939,-480.0,0.00019178,2]
[380207660,1755610240951,-480.0,0.00019178,2]
[380207661,1755610240961,-480.0,0.00019178,2]
[380207662,1755610240971,-480.0,0.00019178,2]
[380207663,1755610240980,-632.27,0.00019178,2]
[380207664,1755610240989,-480.0,0.00019178,2]
[380207665,1755610240999,-480.0,0.00019178,2]
[380207666,1755610241008,-480.0,0.00019178,2]
[380207667,1755610241017,-480.0,0.00019178,2]
[380207668,1755610241027,-480.0,0.00019178,2]
[380207669,1755610241036,-480.0,0.00019178,2]
[380207670,1755610241046,-480.0,0.00019178,2]
[380207671,1755610241057,-480.0,0.00019178,2]
[380207672,1755610241067,-480.0,0.00019178,2]
[380207673,1755610241078,-480.0,0.00019178,2]
[380207674,1755610241089,-480.0,0.00019178,2]
[380207675,1755610241099,-523.65027471,0.00019178,2]
[380207676,1755610241109,-480.0,0.00019178,2]
[380207677,1755610241119,-480.0,0.00019178,2]
[380207678,1755610241132,-480.0,0.00019178,2]
[380207679,1755610241147,-480.0,0.00019178,2]
[380207680,1755610241160,-480.0,0.00019178,2]
[380207681,1755610241171,-481.63458252,0.00019178,2]
[380207682,1755610241182,-480.0,0.00019178,2]
[380207683,1755610241191,-537.5,0.00019178,2]
[380207684,1755610241205,-440.0,0.00019178,2]
[380207685,1755610241214,-480.0,0.00019178,2]
[380207686,1755610241224,-759.02,0.00019178,2]
[380207687,1755610241233,-480.0,0.00019178,2]
[380207688,1755610241244,-480.0,0.00019178,2]
[380207689,1755610241407,-480.0,0.00019178,2]
[380207690,1755610241419,-480.94861762,0.00019178,2]
[380207691,1755610241429,-480.0,0.00019178,2]
[380207692,1755610241439,-442.04194597,0.00019178,2]
[380207693,1755610241453,-362.24021907,0.00019178,2]
[380207694,1755610241462,-480.0,0.00019178,2]
[380207695,1755610241472,-480.0,0.00019178,2]
[380207696,1755610241482,-480.0,0.00019178,2]
[380207697,1755610241492,-480.0,0.00019178,2]
[380207698,1755610241501,-480.0,0.00019178,2]
[380207699,1755610241511,-480.0,0.00019178,2]
[380207700,1755610241520,-470.49463778,0.00019178,2]
[380207701,1755610241530,-480.0,0.00019178,2]
[380207702,1755610241540,-480.0,0.00019178,2]
[380207703,1755610241549,-209.63811212,0.00019178,2]